bitfinex/quotes_BTCUSD_20250222
["timestamp","ask_amount","ask_price","bid_price","bid_amount"]
[1740197773303,0.50471621,96583.0,96582.0,0.0027006]
[1740197773754,0.42291621,96583.0,96582.0,0.0027006]
[1740197820953,0.34791808,96583.0,96582.0,0.0027006]
[1740197838351,0.34791808,96583.0,96582.0,0.02339848]
[1740197838867,0.34791808,96583.0,96582.0,0.02030731]
[1740197839077,0.305319,96575.0,96574.0,0.4021]
[1740197839517,0.31622549,96575.0,96574.0,0.4021]
[1740197840491,0.31622549,96575.0,96574.0,0.4081]
[1740197841464,0.31622549,96575.0,96574.0,0.4098006]
[1740197848919,0.40997364,96575.0,96574.0,0.4098006]
[1740197849482,0.31622549,96575.0,96574.0,0.4098006]
[1740197863139,0.31622549,96575.0,96574.0,0.3291006]
[1740197865254,0.31622549,96575.0,96574.0,0.0077006]
[1740197865659,0.16090649,96575.0,96574.0,0.0077006]
[1740197865876,0.01090649,96575.0,96574.0,0.39526729]
[1740197866083,0.01090649,96575.0,96574.0,0.23994629]
[1740197866322,0.0008504,96582.0,96575.0,0.1296]
[1740197866527,0.00089949,96582.0,96577.0,0.0825]
[1740197866727,0.00089949,96582.0,96579.0,0.0825]
[1740197866932,0.00089949,96582.0,96581.0,0.0825]
[1740197867137,0.00089949,96582.0,96581.0,0.18514569]
[1740197868707,0.00089949,96582.0,96581.0,0.18714569]
[1740197868914,0.00089949,96582.0,96581.0,0.18514569]
[1740197869063,0.00089949,96582.0,96581.0,0.18814569]
[1740197869266,0.00089949,96582.0,96581.0,0.19014569]
[1740197869680,0.00089949,96582.0,96581.0,0.18714569]
[1740197870142,0.00089949,96582.0,96581.0,0.20651006]
[1740197871074,0.00089949,96582.0,96581.0,0.51254569]
[1740197876644,0.00089949,96582.0,96581.0,0.53189344]
[1740197880147,0.00089949,96582.0,96581.0,0.51254569]
[1740197885790,0.00089949,96582.0,96581.0,0.43004569]
[1740197885791,0.1576453,96582.0,96581.0,0.43004569]
[1740197886004,0.16711943,96582.0,96581.0,0.43004569]
[1740197888841,0.16711943,96582.0,96581.0,0.43174649]
[1740197892670,0.16711943,96582.0,96581.0,0.3291008]
[1740197893110,0.16711943,96582.0,96581.0,0.0077008]
[1740197893111,0.44351943,96582.0,96581.0,0.0077008]
[1740197893307,0.54616512,96582.0,96581.0,0.0077008]
[1740197893518,0.56238447,96582.0,96581.0,0.0077008]
[1740197893976,0.56238447,96582.0,96581.0,0.0037008]
[1740197894192,0.56238447,96582.0,96581.0,0.0057008]
[1740197894592,0.56238447,96582.0,96581.0,0.0037008]
[1740197894954,0.56238447,96582.0,96581.0,0.0017008]
[1740197895154,0.56238447,96582.0,96581.0,0.0027008]
[1740197895359,0.58238447,96582.0,96581.0,0.0027008]
[1740197896076,0.56238447,96582.0,96581.0,0.0027008]
[1740197896486,0.54616512,96582.0,96581.0,0.0027008]
[1740197896917,0.54616512,96582.0,96581.0,0.0017008]
[1740197897058,0.54916512,96582.0,96581.0,0.0017008]
[1740197897674,0.54816512,96582.0,96581.0,0.0017008]
[1740197897899,0.54916512,96582.0,96581.0,0.0017008]
[1740197901070,0.56538569,96582.0,96581.0,0.0017008]
[1740197901268,0.48538569,96582.0,96581.0,0.0017008]
[1740197901705,0.43898569,96582.0,96581.0,0.0017008]
[1740197903177,0.33634,96582.0,96581.0,0.0017008]
[1740197906783,0.32011943,96582.0,96581.0,0.0017008]
[1740197910031,0.33633916,96582.0,96581.0,0.0017008]
[1740197918589,0.32011943,96582.0,96581.0,0.0017008]
[1740197921932,0.32011943,96582.0,96575.0,0.0017008]
[1740197921933,0.155318,96576.0,96575.0,6e-07]
[1740197922138,0.15675581,96576.0,96575.0,6e-07]
[1740197922292,0.31763851,96576.0,96575.0,6e-07]
[1740197922501,0.325319,96575.0,96574.0,2e-07]
[1740197922679,0.02,96572.0,96570.0,8e-07]
[1740197922881,0.31764582,96571.0,96570.0,8e-07]
[1740197923123,0.31620801,96571.0,96570.0,8e-07]
[1740197923540,0.34701059,96571.0,96570.0,8e-07]
[1740197924841,0.34801059,96571.0,96570.0,8e-07]
[1740197925044,0.45065628,96571.0,96570.0,8e-07]
[1740197929910,0.4668793,96571.0,96570.0,8e-07]
[1740197936999,0.4677298,96571.0,96570.0,8e-07]
[1740197942672,0.4667298,96571.0,96570.0,8e-07]
[1740197942938,0.4697298,96571.0,96570.0,8e-07]
[1740197943764,0.02,96566.0,96551.0,0.076]
[1740197943971,0.305356,96552.0,96551.0,0.076]
[1740197944495,0.31620734,96552.0,96551.0,0.076]
[1740197944709,0.32699301,96552.0,96551.0,0.076]
[1740197945111,0.32699301,96552.0,96551.0,0.0760431]
[1740197945342,0.32699301,96552.0,96551.0,0.0770431]
[1740197946197,0.32699301,96552.0,96551.0,0.0790431]
[1740197946405,0.32699301,96552.0,96551.0,0.0780431]
[1740197946601,0.32699301,96552.0,96551.0,0.0820431]
[1740197946779,0.42183251,96552.0,96551.0,0.0820431]
[1740197947202,0.43229925,96552.0,96551.0,0.0820431]
[1740197948467,0.43229925,96552.0,96551.0,0.0837441]
[1740197951677,0.43229925,96552.0,96551.0,0.0077441]
[1740197952512,0.43229925,96552.0,96551.0,0.0017441]
[1740197952983,0.43329925,96552.0,96551.0,0.0017441]
[1740197953123,0.45329925,96552.0,96551.0,0.0017441]
[1740197953384,0.45229925,96552.0,96551.0,0.0017441]
[1740197953610,0.45329925,96552.0,96551.0,0.0017441]
[1740197954737,0.46952429,96552.0,96551.0,0.0017441]
[1740197956192,0.15,96551.0,96545.0,0.0757]
[1740197956390,0.305366,96546.0,96545.0,0.0757431]
[1740197957006,0.31621478,96546.0,96545.0,0.0757431]
[1740197957987,0.31621478,96546.0,96545.0,0.0767431]
[1740197958437,0.31621478,96546.0,96545.0,0.0777431]
[1740197958590,0.31621478,96546.0,96545.0,0.0767431]
[1740197959159,0.31621478,96546.0,96545.0,0.0757431]
[1740197959360,0.4001839,96546.0,96545.0,0.0757431]
[1740197959556,0.4001839,96546.0,96545.0,0.0767431]
[1740197960121,0.4001839,96546.0,96545.0,0.0775936]
[1740197961701,0.4001839,96546.0,96545.0,0.0018936]
[1740197962536,0.4001839,96546.0,96545.0,0.0008936]
[1740197966074,0.4201839,96546.0,96545.0,0.0008936]
[1740197967800,0.4201839,96546.0,96544.0,8e-07]
[1740197967801,0.325367,96545.0,96544.0,8e-07]
[1740197968017,0.42801269,96545.0,96544.0,8e-07]
[1740197968265,0.43882089,96545.0,96544.0,8e-07]
[1740197968798,0.57716174,96545.0,96544.0,8e-07]
[1740197969074,0.305404,96522.0,96521.0,0.0753]
[1740197969286,0.3566638,96522.0,96521.0,0.07573146]
[1740197969483,0.305404,96522.0,96521.0,0.00043146]
[1740197969652,0.34321079,96522.0,96521.0,0.00043146]
[1740197970867,0.34321079,96522.0,96521.0,0.00243146]
[1740197971075,0.34321079,96522.0,96521.0,0.00043146]
[1740197971285,0.305414,96516.0,96515.0,0.0753]
[1740197971490,0.31618467,96516.0,96515.0,0.07534314]
[1740197973550,0.31618467,96516.0,96515.0,0.08034314]
[1740197974478,0.31618467,96516.0,96515.0,0.07534314]
[1740197974859,0.31618467,96516.0,96515.0,0.07834314]
[1740197975030,0.32628931,96516.0,96515.0,0.07834314]
[1740197975236,0.4237817,96516.0,96515.0,0.07834314]
[1740197975557,0.32628931,96516.0,96515.0,0.07834314]
[1740197984047,0.32628931,96516.0,96515.0,0.07919414]
[1740197989450,0.17087531,96516.0,96515.0,0.07919414]
[1740197989658,0.32628931,96516.0,96515.0,0.07919414]
[1740198003851,0.32628931,96516.0,96515.0,0.00389414]
[1740198005631,0.34103894,96516.0,96515.0,0.00389414]
[1740198008213,0.32628931,96516.0,96515.0,0.00389414]
[1740198008667,0.32628931,96516.0,96515.0,0.00089414]
[1740198008933,0.32628931,96516.0,96515.0,0.00289414]
[1740198010289,0.32628931,96516.0,96515.0,0.00389414]
[1740198010727,0.32628931,96516.0,96515.0,0.00189414]
[1740198010948,0.32628931,96516.0,96515.0,0.00389414]
[1740198013607,0.33707086,96516.0,96515.0,0.00389414]
[1740198023506,0.41270067,96516.0,96515.0,0.00389414]
[1740198024614,0.33707086,96516.0,96515.0,0.00389414]
[1740198030222,0.155429,96507.0,96506.0,0.0776]
[1740198030479,0.155429,96507.0,96506.0,0.18034408]
[1740198030719,0.16619218,96507.0,96506.0,0.18034408]
[1740198031389,0.01076318,96507.0,96506.0,0.18034408]
[1740198031791,0.01076318,96507.0,96506.0,0.18234408]
[1740198032213,0.01076318,96507.0,96506.0,0.18734408]
[1740198034112,0.16619218,96507.0,96506.0,0.18734408]
[1740198037270,0.16619218,96507.0,96506.0,0.18234408]
[1740198037490,0.16619218,96507.0,96506.0,0.18034408]
[1740198037913,0.16619218,96507.0,96506.0,0.18134408]
[1740198038763,0.16619218,96507.0,96506.0,0.18634408]
[1740198043382,0.16619218,96507.0,96506.0,0.18719448]
[1740198063284,0.16619218,96507.0,96506.0,0.10959448]
[1740198074078,0.155429,96507.0,96506.0,0.10959448]
[1740198074280,0.16617115,96507.0,96506.0,0.10959448]
[1740198076651,0.01074215,96507.0,96506.0,0.10959448]
[1740198077291,0.15,96512.0,96506.0,0.10959448]
[1740198077537,0.01074215,96507.0,96506.0,0.10959448]
[1740198077712,0.155428,96508.0,96506.0,0.10959448]
[1740198077915,0.01074215,96507.0,96506.0,0.10959448]
[1740198078322,0.155426,96509.0,96506.0,0.10959448]
[1740198078543,0.01074215,96507.0,96506.0,0.10959448]
[1740198078751,0.155428,96508.0,96506.0,0.10959448]
[1740198078975,0.01074215,96507.0,96506.0,0.10459448]
[1740198079594,0.01074215,96507.0,96506.0,0.10359448]
[1740198080012,0.01074215,96507.0,96506.0,0.10859448]
[1740198080331,0.01074215,96507.0,96506.0,0.10459448]
[1740198080532,0.01074215,96507.0,96506.0,0.10859448]
[1740198080735,0.155425,96510.0,96506.0,0.10759448]
[1740198080946,0.01074215,96507.0,96506.0,0.10759448]
[1740198081165,0.155425,96510.0,96506.0,0.10759448]
[1740198081360,0.01074215,96507.0,96506.0,0.10759448]
[1740198081569,0.155425,96510.0,96506.0,0.10759448]
[1740198081766,0.01074215,96507.0,96506.0,0.10759448]
[1740198081972,0.155425,96510.0,96506.0,0.10459448]
[1740198082415,0.01074215,96509.0,96506.0,0.10959448]
[1740198082833,0.01074215,96509.0,96506.0,0.10359448]
[1740198083077,0.16616815,96509.0,96506.0,0.10759448]
[1740198083309,0.16616815,96509.0,96506.0,0.10859448]
[1740198083517,0.16616815,96509.0,96506.0,0.10359448]
[1740198083731,0.16616815,96509.0,96506.0,0.10459448]
[1740198083941,0.01074215,96509.0,96506.0,0.10859448]
[1740198084305,0.305422,96511.0,96506.0,0.10859448]
[1740198084533,0.01074215,96508.0,96506.0,0.10859448]
[1740198084738,0.305422,96511.0,96506.0,0.10859448]
[1740198084976,0.01074215,96507.0,96506.0,0.10859448]
[1740198085179,0.155424,96510.0,96506.0,0.10759448]
[1740198085421,0.01074424,96507.0,96506.0,0.10759448]
[1740198085637,0.155424,96510.0,96506.0,0.10859448]
[1740198085836,0.01074428,96507.0,96506.0,0.10359448]
[1740198086302,0.155424,96510.0,96506.0,0.10759448]
[1740198086542,0.01074428,96507.0,96506.0,0.10659448]
[1740198086770,0.155424,96510.0,96506.0,0.10459448]
[1740198087021,0.01074428,96507.0,96506.0,0.10759448]
[1740198087231,0.155423,96511.0,96506.0,0.10759448]
[1740198087449,0.01074428,96507.0,96506.0,0.10359448]
[1740198087669,0.01074428,96507.0,96506.0,0.10859448]
[1740198087877,0.155423,96511.0,96506.0,0.10859448]
[1740198088086,0.01074428,96507.0,96506.0,0.10859448]
[1740198088216,0.155423,96511.0,96506.0,0.10959448]
[1740198088432,0.01074428,96510.0,96506.0,0.10959448]
[1740198089183,0.16616928,96510.0,96506.0,0.10859448]
[1740198089353,0.16616928,96510.0,96506.0,0.10959448]
[1740198089495,0.16616928,96510.0,96506.0,0.10459448]
[1740198089695,0.16616928,96510.0,96506.0,0.10659448]
[1740198089924,0.16616928,96510.0,96506.0,0.10759448]
[1740198090135,0.16616928,96510.0,96506.0,0.10459448]
[1740198090579,0.16616928,96510.0,96506.0,0.10859448]
[1740198093203,0.155426,96509.0,96506.0,0.10859448]
[1740198093840,0.01074428,96508.0,96506.0,0.10859448]
[1740198094012,0.01074428,96508.0,96506.0,0.10459448]
[1740198094468,0.01074428,96508.0,96506.0,0.10859448]
[1740198094904,0.01074428,96508.0,96506.0,0.10459448]
[1740198095372,0.01074428,96508.0,96506.0,0.10359448]
[1740198095793,0.01074428,96508.0,96506.0,0.10459448]
[1740198095982,0.01074428,96508.0,96506.0,0.10359448]
[1740198096192,0.01074428,96508.0,96506.0,0.10759448]
[1740198096416,0.01074428,96508.0,96506.0,0.10859448]
[1740198097206,0.155425,96510.0,96506.0,0.10859448]
[1740198097379,0.01074362,96507.0,96506.0,0.10859448]
[1740198098239,0.01074362,96507.0,96506.0,0.10459448]
[1740198098437,0.01074362,96507.0,96506.0,0.10359448]
[1740198098892,0.01074362,96507.0,96506.0,0.10459448]
[1740198099248,0.01074362,96507.0,96506.0,0.18199448]
[1740198099459,0.01074362,96507.0,96506.0,0.38426775]
[1740198099657,0.01074362,96507.0,96506.0,0.38802448]
[1740198099988,0.01074362,96507.0,96506.0,0.38902448]
[1740198100326,0.01074362,96507.0,96506.0,1.26374959]
[1740198100691,0.01074362,96507.0,96506.0,1.25874959]
[1740198101117,0.01174362,96507.0,96506.0,1.26374959]
[1740198102105,0.01174362,96507.0,96506.0,1.26274959]
[1740198102331,0.01274362,96507.0,96506.0,1.26674959]
[1740198102527,0.01174362,96507.0,96506.0,1.26174959]
[1740198102786,0.01174362,96507.0,96506.0,1.26474959]
[1740198102964,0.01274362,96507.0,96506.0,1.26874959]
[1740198103201,0.01174362,96507.0,96506.0,1.25774959]
[1740198103550,0.01274362,96507.0,96506.0,1.27174959]
[1740198104177,0.01274362,96507.0,96506.0,1.29111091]
[1740198133949,0.01274362,96507.0,96506.0,1.27174959]
[1740198136045,0.01274362,96507.0,96506.0,1.30410231]
[1740198136246,0.0017008,96515.0,96514.0,0.155417]
[1740198136480,0.0017008,96515.0,96514.0,0.38480569]
[1740198136716,0.0017008,96515.0,96514.0,0.38356269]
[1740198137398,0.0027008,96515.0,96514.0,0.39056269]
[1740198137609,0.0027008,96515.0,96514.0,0.40997566]
[1740198137831,0.0017008,96515.0,96514.0,0.40297566]
[1740198138059,0.0027008,96515.0,96514.0,0.40997566]
[1740198138444,0.0037008,96515.0,96514.0,0.41697566]
[1740198139009,0.0037008,96515.0,96514.0,1.28137566]
[1740198139622,0.0037008,96515.0,96514.0,1.44591651]
[1740198139834,0.0037008,96515.0,96514.0,1.47822396]
[1740198140034,0.0037008,96515.0,96514.0,1.48900296]
[1740198140690,0.0027008,96515.0,96514.0,1.48200296]
[1740198140901,0.0027008,96515.0,96514.0,1.48900296]
[1740198141663,0.0017008,96515.0,96514.0,1.48200296]
[1740198141862,0.0017008,96515.0,96514.0,1.48900296]
[1740198143544,0.0017008,96515.0,96514.0,1.45669551]
[1740198145697,0.0017008,96515.0,96514.0,1.47712718]
[1740198146626,0.0017008,96515.0,96514.0,1.50938582]
[1740198148571,0.0017008,96515.0,96514.0,1.47712718]
[1740198148774,0.0017008,96515.0,96514.0,1.66768718]
[1740198151170,0.0017008,96515.0,96514.0,1.6999296]
[1740198151966,0.0017008,96515.0,96514.0,1.7199296]
[1740198152791,8e-07,96515.0,96514.0,1.7199296]
[1740198154264,8e-07,96515.0,96514.0,1.7129296]
[1740198154482,8e-07,96515.0,96514.0,1.7199296]
[1740198154956,8e-07,96515.0,96514.0,1.7059296]
[1740198155173,8e-07,96515.0,96514.0,1.7129296]
[1740198155912,8e-07,96515.0,96514.0,1.7199296]
[1740198156847,8e-07,96521.0,96520.0,0.47204885]
[1740198157007,8e-07,96521.0,96520.0,0.61437696]
[1740198157997,8e-07,96521.0,96520.0,0.63378993]
[1740198158213,8e-07,96521.0,96520.0,0.64778993]
[1740198159853,8e-07,96521.0,96520.0,1.51218993]
[1740198163479,8e-07,96521.0,96520.0,1.50518993]
[1740198163658,8e-07,96521.0,96520.0,1.51218993]
[1740198163858,8e-07,96521.0,96520.0,1.53218993]
[1740198164466,8e-07,96521.0,96520.0,1.52518993]
[1740198164690,8e-07,96521.0,96520.0,1.53218993]
[1740198164931,8e-07,96521.0,96520.0,1.54587072]
[1740198165077,8e-07,96521.0,96520.0,1.53887072]
[1740198165284,8e-07,96521.0,96520.0,1.54587072]
[1740198165489,8e-07,96521.0,96520.0,1.55287072]
[1740198167093,8e-07,96521.0,96520.0,1.56364372]
[1740198168321,0.0017014,96551.0,96550.0,0.155359]
[1740198168513,0.0017014,96551.0,96550.0,1.13108654]
[1740198168756,0.0017014,96551.0,96550.0,1.12984389]
[1740198169302,0.0017014,96551.0,96550.0,1.14925686]
[1740198169501,0.00213256,96551.0,96550.0,1.14925686]
[1740198169931,0.00213256,96551.0,96550.0,1.15625686]
[1740198171094,0.00213256,96551.0,96550.0,1.16325686]
[1740198171697,0.00213256,96551.0,96550.0,1.17368825]
[1740198172867,0.00213256,96551.0,96550.0,1.15427528]
[1740198174487,0.00213256,96551.0,96550.0,1.17467994]
[1740198186945,0.00213256,96551.0,96550.0,1.16424855]
[1740198187871,0.00213256,96551.0,96550.0,1.1744139]
[1740198245612,0.00213256,96551.0,96550.0,1.2530139]
[1740198274873,0.00213256,96551.0,96550.0,1.28532102]
[1740198275065,0.00213256,96551.0,96550.0,1.2530139]
[1740198288454,0.00213256,96551.0,96550.0,1.00144955]
[1740198288652,0.00213256,96551.0,96550.0,0.98848489]
[1740198288922,0.01292302,96551.0,96550.0,1.14384389]
[1740198289321,0.01292302,96551.0,96550.0,0.98848489]
[1740198289733,0.01292302,96551.0,96550.0,1.14384389]
[1740198292847,0.01292302,96551.0,96550.0,1.13640389]
[1740198293057,0.01292302,96551.0,96550.0,0.60084389]
[1740198294046,0.01940658,96551.0,96550.0,0.60084389]
[1740198294246,0.01940658,96551.0,96550.0,0.44548489]
[1740198297286,0.01940658,96551.0,96550.0,0.60084389]
[1740198298645,0.01292302,96551.0,96550.0,0.60084389]
[1740198299318,0.01292302,96551.0,96550.0,0.59340389]
[1740198299524,0.01292302,96551.0,96550.0,0.44548489]
[1740198299765,0.01292302,96551.0,96550.0,0.43804489]
[1740198299985,0.01292302,96551.0,96550.0,0.44548489]
[1740198301335,0.01940681,96551.0,96550.0,0.44548489]
[1740198306005,0.01940681,96551.0,96550.0,0.60084389]
[1740198309684,0.01292302,96551.0,96550.0,0.60084389]
[1740198311524,0.01292302,96551.0,96550.0,0.59340389]
[1740198311764,0.01292302,96551.0,96550.0,0.60084389]
[1740198318951,0.01292302,96551.0,96550.0,0.59340389]
[1740198319215,0.01292302,96551.0,96550.0,0.64944389]
[1740198319491,0.01292302,96551.0,96550.0,0.73194389]
[1740198323117,0.01292302,96551.0,96550.0,0.72450389]
[1740198323318,0.01292302,96551.0,96550.0,0.73194389]
[1740198338884,0.0008505,96571.0,96570.0,0.155327]
[1740198339111,0.00097978,96571.0,96570.0,0.57937189]
[1740198340636,0.00097978,96571.0,96570.0,0.58237189]
[1740198341090,0.00097978,96571.0,96570.0,1.12537189]
[1740198341226,0.00097978,96571.0,96570.0,1.12837189]
[1740198341457,0.00097978,96571.0,96570.0,1.12537189]
[1740198341858,0.00097978,96571.0,96570.0,1.13037189]
[1740198342064,0.00097978,96571.0,96570.0,1.12737189]
[1740198342262,0.00097978,96571.0,96570.0,1.13437189]
[1740198342778,0.00097978,96571.0,96570.0,1.14475774]
[1740198344535,0.00097978,96571.0,96570.0,1.16538851]
[1740198344761,0.00097978,96571.0,96570.0,1.16038851]
[1740198345470,0.00097978,96571.0,96570.0,1.15700266]
[1740198345892,0.00097978,96571.0,96570.0,1.15000266]
[1740198346109,0.00097978,96571.0,96570.0,1.15700266]
[1740198359703,0.00097978,96571.0,96570.0,1.23650266]
[1740198367958,0.00097978,96571.0,96570.0,1.28370266]
[1740198369730,0.00097978,96571.0,96570.0,1.29824351]
[1740198372613,0.00097978,96571.0,96570.0,1.30239251]
[1740198376114,0.00097978,96571.0,96570.0,1.29539251]
[1740198376302,0.00097978,96571.0,96570.0,1.28839251]
[1740198376451,0.00097978,96571.0,96570.0,1.44539251]
[1740198377307,0.00097978,96571.0,96570.0,1.45239251]
[1740198378746,0.00097978,96571.0,96570.0,1.44539251]
[1740198378975,0.00097978,96571.0,96570.0,1.45239251]
[1740198379435,0.00097978,96571.0,96570.0,1.44539251]
[1740198379651,0.00097978,96571.0,96570.0,1.45239251]
[1740198379855,0.00097978,96571.0,96570.0,1.44539251]
[1740198380284,0.00097978,96571.0,96570.0,1.45239251]
[1740198380774,0.00097978,96571.0,96570.0,1.44539251]
[1740198381017,0.00097978,96571.0,96570.0,1.45239251]
[1740198383531,0.00097978,96571.0,96570.0,1.45983251]
[1740198391186,0.00097978,96571.0,96570.0,1.48883251]
[1740198392072,0.00097978,96571.0,96570.0,1.44163251]
[1740198395317,0.00097978,96571.0,96570.0,1.49013251]
[1740198395533,0.00097978,96571.0,96570.0,1.52236841]
[1740198396479,0.00097978,96571.0,96570.0,1.51536841]
[1740198396697,0.00097978,96571.0,96570.0,1.50836841]
[1740198396916,0.00097978,96571.0,96570.0,1.52236841]
[1740198397256,0.00097978,96571.0,96570.0,1.51536841]
[1740198397468,0.00097978,96571.0,96570.0,1.52236841]
[1740198416228,0.00097978,96571.0,96570.0,1.04228079]
[1740198416466,0.00097978,96571.0,96570.0,1.01744489]
[1740198416710,0.00097978,96571.0,96570.0,1.01004489]
[1740198416969,0.15630578,96571.0,96570.0,0.46704489]
[1740198417192,0.23344359,96571.0,96570.0,0.46004489]
[1740198417471,0.29013455,96571.0,96570.0,0.46004489]
[1740198418173,0.29013455,96571.0,96570.0,0.029]
[1740198418174,0.3063324,96571.0,96570.0,0.029]
[1740198418376,0.15534,96562.0,96561.0,0.3213992]
[1740198418651,0.23247781,96562.0,96561.0,0.3213992]
[1740198418913,0.23974166,96562.0,96561.0,0.3213992]
[1740198419111,0.32584953,96562.0,96561.0,0.3213992]
[1740198420173,0.32584953,96562.0,96561.0,0.3223992]
[1740198420613,0.23974166,96562.0,96561.0,0.3223992]
[1740198423813,0.23974166,96562.0,96561.0,0.001]
[1740198424992,0.00870166,96562.0,96561.0,0.10364569]
[1740198425300,0.00143781,96567.0,96561.0,0.10364569]
[1740198425535,0.0086435,96562.0,96561.0,0.10364569]
[1740198425767,0.00143781,96567.0,96561.0,0.10264569]
[1740198425996,0.0086435,96562.0,96561.0,0.10364569]
[1740198426227,0.00143781,96567.0,96561.0,0.10364569]
[1740198426435,0.0086435,96562.0,96561.0,0.10364569]
[1740198426645,0.00143781,96567.0,96561.0,0.10364569]
[1740198426859,0.0086435,96562.0,96561.0,0.10364569]
[1740198427068,0.00143781,96568.0,96561.0,0.10364569]
[1740198427286,0.0086435,96562.0,96561.0,0.10364569]
[1740198427510,0.00143781,96568.0,96561.0,0.10264569]
[1740198427718,0.2328,96569.0,96562.0,0.10264569]
[1740198427925,0.0086435,96567.0,96562.0,0.10264569]
[1740198428155,0.00865245,96568.0,96562.0,0.10264569]
[1740198428377,0.001,96567.0,96562.0,0.10264569]
[1740198428593,0.001,96567.0,96566.0,0.155334]
[1740198428835,0.00143781,96578.0,96566.0,0.25797969]
[1740198429043,0.00143781,96578.0,96569.0,0.155329]
[1740198429222,0.00143781,96578.0,96570.0,0.10264569]
[1740198429375,0.0836504,96583.0,96570.0,0.10264569]
[1740198429376,0.00228821,96582.0,96570.0,0.10264569]
[1740198429582,0.00228821,96582.0,96570.0,0.42404489]
[1740198430886,0.15759621,96582.0,96570.0,0.42404489]
[1740198431117,0.00228821,96582.0,96570.0,0.42404489]
[1740198432216,0.00228821,96582.0,96570.0,0.42504489]
[1740198432885,0.15759621,96582.0,96570.0,0.42504489]
[1740198435384,0.155315,96578.0,96570.0,0.42504489]
[1740198435603,0.155314,96579.0,96570.0,0.42504489]
[1740198435840,0.01082808,96576.0,96570.0,0.42504489]
[1740198439032,0.15532,96575.0,96570.0,0.42504489]
[1740198439442,0.00966098,96571.0,96570.0,0.42504489]
[1740198440797,0.00097978,96571.0,96570.0,0.42504489]
[1740198441029,0.00966098,96571.0,96570.0,0.42504489]
[1740198441248,0.00097978,96571.0,96570.0,0.42504489]
[1740198441460,0.00966098,96571.0,96570.0,0.42504489]
[1740198441890,0.16498698,96571.0,96570.0,0.42504489]
[1740198442305,0.1840063,96571.0,96570.0,0.3223992]
[1740198442722,0.21442479,96571.0,96570.0,0.3223992]
[1740198442923,0.21298698,96571.0,96570.0,0.3223992]
[1740198443344,0.21298698,96571.0,96570.0,0.3213992]
[1740198444094,0.36298698,96571.0,96570.0,0.3213992]
[1740198444668,0.36398698,96571.0,96570.0,0.3213992]
[1740198444868,0.46563267,96571.0,96570.0,0.3213992]
[1740198445330,0.48585433,96571.0,96570.0,0.3213992]
[1740198445626,0.46963267,96571.0,96570.0,0.28897306]
[1740198447562,0.30534,96562.0,96561.0,0.0017006]
[1740198447991,0.31399784,96562.0,96561.0,0.0017006]
[1740198448185,0.40753142,96562.0,96561.0,0.0017006]
[1740198449348,0.40853142,96562.0,96561.0,0.0017006]
[1740198449520,0.40753142,96562.0,96561.0,0.0017006]
[1740198449940,0.40853142,96562.0,96561.0,0.0017006]
[1740198451061,0.4183403,96562.0,96561.0,0.0017006]
[1740198451436,0.4193403,96562.0,96561.0,0.0017006]
[1740198452033,0.4213403,96562.0,96561.0,0.0017006]
[1740198455249,0.5031403,96562.0,96561.0,0.0017006]
[1740198456667,0.5021403,96562.0,96561.0,0.0017006]
[1740198457289,0.5001403,96562.0,96561.0,0.0017006]
[1740198457461,0.155382,96536.0,96533.0,0.28897306]
[1740198457665,0.155384,96535.0,96534.0,0.10264569]
[1740198457867,0.207153,96547.0,96534.0,0.10264569]
[1740198458070,0.00862476,96535.0,96534.0,0.10264569]
[1740198458290,0.15538,96537.0,96534.0,0.10264569]
[1740198458549,0.00862476,96535.0,96534.0,0.10264569]
[1740198458767,0.15546875,96535.0,96534.0,0.10264569]
[1740198458975,0.00870951,96535.0,96534.0,0.10264569]
[1740198459230,0.16409351,96535.0,96534.0,0.10264569]
[1740198459438,0.00870951,96535.0,96534.0,0.10264569]
[1740198459642,0.16409351,96535.0,96534.0,0.10264569]
[1740198459846,0.00870951,96535.0,96534.0,0.10264569]
[1740198460047,0.00870951,96535.0,96534.0,0.10464569]
[1740198460908,0.16409351,96535.0,96534.0,0.10464569]
[1740198461081,0.16409351,96535.0,96534.0,0.10564569]
[1740198465519,0.21486944,96535.0,96534.0,0.10564569]
[1740198466411,0.22566734,96535.0,96534.0,0.10564569]
[1740198468689,0.07028334,96535.0,96534.0,0.10564569]
[1740198469098,0.01950741,96535.0,96534.0,0.10564569]
[1740198471914,0.01950741,96535.0,96534.0,0.10649609]
[1740198481433,0.01950741,96535.0,96534.0,0.18589609]
[1740198484149,0.01088265,96535.0,96534.0,0.18589609]
[1740198494784,0.01088265,96535.0,96534.0,0.34128109]
[1740198494982,8.475e-05,96535.0,96534.0,0.38808109]
[1740198495819,8.475e-05,96535.0,96534.0,0.38508109]
[1740198496015,8.475e-05,96535.0,96534.0,1.21705415]
[1740198496183,8.475e-05,96535.0,96534.0,1.22305415]
[1740198498059,8.475e-05,96535.0,96534.0,1.21705415]
[1740198498232,0.00108475,96535.0,96534.0,1.21905415]
[1740198498438,8.475e-05,96535.0,96534.0,1.22405415]
[1740198498655,0.00108475,96535.0,96534.0,1.22705415]
[1740198498828,0.00108475,96535.0,96534.0,1.22005415]
[1740198499026,0.00108475,96535.0,96534.0,1.22705415]
[1740198502671,0.00108475,96535.0,96534.0,1.37705415]
[1740198525592,0.00108475,96535.0,96534.0,1.38449415]
[1740198526605,0.00108475,96535.0,96534.0,1.37705415]
[1740198526835,0.00108475,96535.0,96534.0,1.38449415]
[1740198527047,0.00108475,96535.0,96534.0,1.37705415]
[1740198527294,0.00108475,96535.0,96534.0,1.38449415]
[1740198534007,0.00108475,96535.0,96534.0,0.94546915]
[1740198534215,0.00108475,96535.0,96534.0,1.10829415]
[1740198535132,8.475e-05,96535.0,96534.0,1.10529415]
[1740198535330,0.00108475,96535.0,96534.0,1.09285415]
[1740198535533,0.00108475,96535.0,96534.0,1.10729415]
[1740198535866,0.00108475,96535.0,96534.0,1.10029415]
[1740198536305,0.00108475,96535.0,96534.0,1.10729415]
[1740198539482,0.00108475,96535.0,96534.0,0.40146915]
[1740198539658,0.15646875,96535.0,96534.0,0.40890915]
[1740198539839,0.15646875,96535.0,96534.0,0.40146915]
[1740198540041,0.00973243,96535.0,96534.0,0.40146915]
[1740198541326,0.00108475,96535.0,96534.0,0.40146915]
[1740198541512,0.00972958,96535.0,96534.0,0.40146915]
[1740198541695,0.00108475,96535.0,96534.0,0.40146915]
[1740198541898,0.00972958,96535.0,96534.0,0.40146915]
[1740198542102,0.00108475,96535.0,96534.0,0.40146915]
[1740198542331,0.00972958,96535.0,96534.0,0.40146915]
[1740198542544,0.00108475,96535.0,96534.0,0.40146915]
[1740198546696,0.15508518,96542.0,96534.0,0.40146915]
[1740198546908,0.15508518,96542.0,96534.0,0.40190031]
[1740198547118,0.00863906,96541.0,96534.0,0.40190031]
[1740198547322,0.16401306,96541.0,96534.0,0.40190031]
[1740198547578,0.00863906,96541.0,96534.0,0.39990031]
[1740198547887,0.00863906,96541.0,96534.0,0.40190031]
[1740198548159,0.00863906,96541.0,96534.0,0.39990031]